bitfinex/quotes_ETHUSD_20241108
["timestamp","ask_amount","ask_price","bid_price","bid_amount"]
[1731075901214,3.23909876,2944.2,2943.4,0.55]
[1731075902020,3.23909876,2943.9,2942.7,1.54566411]
[1731075902190,3.23909876,2943.9,2942.9,0.55]
[1731075902396,3.23909876,2943.9,2943.1,0.55]
[1731075902596,3.23909876,2943.9,2943.1,0.91179495]
[1731075902804,3.23909876,2943.9,2943.1,0.55]
[1731075903784,3.23909876,2943.9,2942.9,0.55]
[1731075903985,1.05601058,2944.4,2942.7,0.67817097]
[1731075903986,3.23909876,2944.2,2943.1,0.55]
[1731075904185,3.23909876,2944.2,2943.3,0.55]
[1731075905383,3.23909876,2943.9,2943.2,0.55]
[1731075905632,3.23909876,2943.9,2943.3,0.06794626]
[1731075905787,3.23909876,2943.9,2943.2,0.55]
[1731075906510,3.23909876,2943.9,2943.2,0.61794559]
[1731075906832,3.23909876,2943.9,2943.2,0.55]
[1731075907029,3.23909876,2943.9,2943.2,0.61794606]
[1731075907325,3.23909876,2944.2,2943.2,0.61794606]
[1731075907703,3.23909876,2944.2,2943.2,0.55]
[1731075908532,3.23909876,2943.9,2943.2,0.55]
[1731075909890,3.56300864,2943.9,2943.2,0.55]
[1731075910215,3.56300864,2943.9,2943.0,0.55]
[1731075910390,3.23909876,2943.9,2942.9,0.55]
[1731075910794,3.23909876,2943.6,2942.9,0.55]
[1731075911240,3.23909876,2943.6,2942.7,0.55]
[1731075911456,3.23909876,2943.9,2942.9,0.55]
[1731075911730,1.82611058,2944.4,2943.1,0.55]
[1731075911930,4.29510934,2944.6,2943.3,0.55]
[1731075912140,3.23909876,2944.6,2943.5,0.55]
[1731075913422,1.86331058,2945.1,2943.7,0.55]
[1731075913645,0.8073,2945.1,2943.9,0.55]
[1731075913943,3.23909876,2944.9,2943.7,0.55]
[1731075914434,3.23909876,2944.9,2944.2,0.55]
[1731075914638,3.23909876,2944.6,2943.0,3.0]
[1731075914836,3.23909876,2944.6,2942.8,0.02]
[1731075914837,3.23909876,2944.6,2943.3,0.55]
[1731075915498,3.23909876,2944.0,2942.5,0.01]
[1731075915926,3.23909876,2944.0,2943.3,0.68591064]
[1731075916131,3.23909876,2944.3,2943.3,0.68591064]
[1731075916334,3.64439864,2944.3,2943.3,0.68591064]
[1731075916946,0.8139,2944.5,2943.4,0.06794261]
[1731075917129,3.23909876,2944.6,2943.5,0.55]
[1731075917344,4.29510934,2945.0,2943.7,0.55]
[1731075917555,3.23909876,2945.0,2943.7,0.55]
[1731075918418,3.23909876,2945.0,2943.4,0.86676353]
[1731075918419,3.23909876,2945.0,2943.5,0.55]
[1731075918750,3.23909876,2945.0,2943.3,0.55]
[1731075919114,3.23909876,2945.0,2943.2,0.56]
[1731075919314,3.23909876,2945.0,2944.1,0.55]
[1731075919977,3.23909876,2945.0,2943.9,0.55]
[1731075921134,3.23909876,2944.7,2943.9,0.55]
[1731075921311,3.23909876,2944.7,2943.9,1.23193545]
[1731075921510,3.23909876,2945.0,2943.9,1.23193545]
[1731075923940,3.23909876,2945.3,2943.9,1.23193545]
[1731075924627,3.23909876,2945.0,2943.9,1.23193545]
[1731075928171,1.87505788,2946.1,2944.6,3.55]
[1731075928378,3.23909876,2945.9,2944.6,0.55]
[1731075928677,0.32390988,2945.8,2944.6,0.55]
[1731075929665,0.8114,2946.1,2944.8,0.55]
[1731075929865,3.23909876,2946.0,2944.8,0.55]
[1731075930235,3.23909876,2946.0,2945.0,0.55]
[1731075930774,3.23909876,2946.3,2945.0,0.55]
[1731075930976,3.23909876,2946.3,2944.8,0.55]
[1731075931175,0.32529802,2946.2,2945.0,0.55]
[1731075931475,0.32529802,2946.2,2945.0,0.61790314]
[1731075931691,0.32529802,2946.2,2945.2,0.55]
[1731075932978,0.0138814,2946.4,2945.2,0.55]
[1731075933276,0.0138814,2946.4,2944.7,3.0]
[1731075933277,3.23909876,2946.3,2945.4,0.55]
[1731075934546,3.23909876,2946.3,2944.7,3.0]
[1731075934748,3.23909876,2946.3,2944.0,4.0664746]
[1731075934749,3.23909876,2945.7,2944.0,4.0664746]
[1731075935019,3.23909876,2945.7,2944.5,0.68850155]
[1731075935184,3.64056864,2945.7,2944.5,0.68850155]
[1731075935477,3.64056864,2945.7,2944.6,0.06790964]
[1731075935649,3.64056864,2945.7,2944.0,35.0]
[1731075936376,3.64056864,2945.7,2944.3,0.66162922]
[1731075936680,3.64056864,2945.7,2944.4,0.06791648]
[1731075937036,3.64056864,2945.7,2944.5,0.55]
[1731075937368,3.64056864,2945.7,2944.7,0.55]
[1731075938376,0.7756,2945.9,2944.9,0.55]
[1731075938787,3.23909876,2946.0,2944.9,0.55]
[1731075940490,3.23909876,2946.3,2945.1,0.55]
[1731075940696,3.23909876,2946.3,2945.3,0.55]
[1731075941091,3.23909876,2946.3,2945.1,0.55]
[1731075941566,0.0138814,2946.4,2945.0,0.55]
[1731075941761,3.23909876,2946.3,2945.2,0.55]
[1731075942273,3.23909876,2946.3,2945.4,0.55]
[1731075942611,3.23909876,2946.3,2945.3,0.55]
[1731075943065,3.23909876,2946.0,2945.3,0.55]
[1731075943421,3.23909876,2945.7,2943.8,3.91072776]
[1731075943563,3.23909876,2946.0,2944.5,0.66434811]
[1731075943874,1.09264935,2946.4,2944.5,0.66434811]
[1731075943875,3.23909876,2946.3,2944.6,0.06790664]
[1731075944073,0.41852942,2946.4,2944.7,3.23909876]
[1731075944498,0.41852942,2946.4,2944.8,38.0]
[1731075944687,3.23909876,2946.3,2944.9,0.55]
[1731075944999,3.68685158,2946.3,2945.1,0.55]
[1731075945200,3.68685158,2946.3,2945.2,0.06790043]
[1731075945501,3.23909876,2946.3,2945.3,0.55]
[1731075945805,3.23909876,2946.3,2945.5,0.55]
[1731075946320,3.23909876,2946.3,2945.3,0.55]
[1731075947701,0.0138814,2946.4,2945.4,3.06789169]
[1731075947896,0.0138814,2946.4,2945.5,1.23569905]
[1731075948185,0.0138814,2946.4,2945.6,0.06787764]
[1731075948388,0.0138814,2946.4,2945.7,0.55]
[1731075948828,0.0138814,2946.4,2945.5,0.68569905]
[1731075949135,0.0138814,2946.4,2942.6,5.7648921]
[1731075949136,0.0138814,2946.4,2944.8,0.83942657]
[1731075949485,0.0138814,2946.4,2944.9,0.51333074]
[1731075949709,0.0138814,2946.4,2945.1,3.0]
[1731075949920,0.0138814,2946.4,2945.2,0.06789491]
[1731075950159,0.0138814,2946.4,2945.1,3.66760539]
[1731075950322,0.0138814,2946.4,2945.2,0.98653063]
[1731075950524,0.0138814,2946.4,2945.3,0.55]
[1731075950925,0.0138814,2946.4,2945.9,3.23909876]
[1731075951128,0.0138814,2946.4,2946.3,3.55]
[1731075951517,0.0138814,2946.4,2946.3,38.55]
[1731075952928,0.0138814,2946.4,2946.3,39.05977092]
[1731075953149,0.1485877,2949.3,2946.4,0.01]
[1731075953327,0.1385877,2949.3,2947.9,0.55]
[1731075953881,3.23909876,2949.2,2947.8,0.55]
[1731075954240,0.1385877,2949.3,2948.0,0.55]
[1731075954561,0.1385877,2949.3,2948.5,3.0]
[1731075954716,0.1385877,2949.3,2948.6,1.17390988]
[1731075954918,0.1385877,2949.3,2948.6,0.55]
[1731075955340,0.1385877,2949.3,2948.8,0.55]
[1731075957667,0.1385877,2949.3,2949.0,0.55]
[1731075958300,0.1385877,2949.3,2948.6,3.0]
[1731075959363,0.1385877,2949.3,2948.3,3.97171065]
[1731075959589,0.1385877,2949.3,2948.4,0.39717107]
[1731075959895,0.1385877,2949.3,2948.5,0.06781873]
[1731075960107,0.9197877,2949.3,2948.0,0.69444208]
[1731075960395,0.9197877,2949.3,2947.5,3.97171065]
[1731075960601,0.9197877,2949.3,2947.5,4.46648157]
[1731075961095,0.9197877,2949.3,2947.7,0.67924809]
[1731075961297,0.7938,2949.2,2947.6,0.44664816]
[1731075961660,0.7938,2949.2,2946.5,3.97171065]
[1731075961661,0.7938,2948.9,2946.5,3.97171065]
[1731075961912,0.7938,2948.4,2946.5,3.97171065]
[1731075962073,0.7938,2948.4,2946.0,0.01]
[1731075962267,0.7938,2948.4,2945.9,0.01]
[1731075962268,0.7938,2948.4,2946.2,3.97171065]
[1731075962470,3.0,2948.5,2946.2,3.97171065]
[1731075962471,3.0,2948.1,2946.4,0.67985807]
[1731075962781,0.8117,2948.0,2946.2,0.66433744]
[1731075963097,0.8117,2948.0,2946.2,4.63604809]
[1731075963484,0.8117,2948.0,2946.3,0.40606259]
[1731075964066,0.8117,2948.0,2946.4,3.55]
[1731075964269,0.8117,2948.0,2946.6,0.55]
[1731075964470,0.8117,2948.0,2946.4,3.55]
[1731075966301,0.8117,2948.0,2946.5,0.06786381]
[1731075966512,0.8117,2948.0,2946.6,0.55]
[1731075966715,0.8117,2948.0,2946.5,0.55]
[1731075967009,0.8117,2948.0,2946.8,0.55]
[1731075967218,0.7892,2947.8,2946.2,0.66433744]
[1731075967509,0.7892,2947.8,2945.5,35.0]
[1731075967809,0.7607,2947.7,2945.5,35.40606259]
[1731075968106,3.97171065,2947.5,2945.9,0.69482643]
[1731075968306,0.47324107,2947.4,2946.0,0.0678774]
[1731075968507,0.47324107,2947.4,2945.9,0.69482643]
[1731075968708,0.7607,2947.3,2945.6,0.40606259]
[1731075968933,0.7607,2947.3,2945.7,0.06787879]
[1731075969207,1.28126517,2947.3,2945.8,0.40606259]
[1731075969909,1.28126517,2947.3,2945.9,3.61787421]
[1731075969910,0.7607,2947.3,2945.9,3.61787421]
[1731075970116,0.7607,2947.3,2945.9,4.11191398]
[1731075970617,0.7568,2948.2,2946.3,3.55]
[1731075970817,0.7568,2948.2,2946.4,0.06786153]
[1731075971109,0.7568,2948.2,2946.5,0.55]
[1731075971324,0.7568,2948.2,2946.3,3.0]
[1731075971325,0.47285106,2948.1,2946.7,0.55]
[1731075971488,0.47285106,2948.1,2946.8,0.06786153]
[1731075972008,0.7787,2948.0,2946.7,0.55]
[1731075972220,0.7787,2948.0,2946.8,0.06786153]
[1731075973440,0.7787,2948.0,2946.7,0.55]
[1731075974663,0.7787,2948.0,2946.8,0.06786292]
[1731075975227,0.7787,2948.0,2946.7,0.55]
[1731075975766,0.7787,2948.0,2943.7,1.64084845]
[1731075975767,3.7709,2946.7,2945.7,0.35432433]
[1731075975966,0.7709,2946.3,2944.1,0.02]
[1731075976131,0.7709,2946.3,2944.8,0.67702786]
[1731075976540,0.7709,2946.3,2944.9,0.06790072]
[1731075976741,0.7709,2946.3,2944.2,0.89087641]
[1731075976742,0.7709,2946.3,2945.2,3.97171065]
[1731075977051,0.7709,2946.3,2945.3,0.39717107]
[1731075977940,0.7709,2946.3,2945.4,0.06788994]
[1731075979186,0.7709,2946.3,2945.5,0.55]
[1731075979488,0.7709,2946.3,2945.7,0.55]
[1731075979865,0.7709,2946.3,2945.5,0.55]
[1731075980274,0.7709,2946.3,2945.6,0.55]
[1731075980478,0.7709,2946.3,2945.4,0.55]
[1731075980776,0.7709,2946.3,2945.6,0.55]
[1731075981777,0.7709,2946.3,2945.4,0.55]
[1731075982275,0.7709,2946.3,2945.6,0.55]
[1731075982479,0.7709,2946.3,2945.4,0.55]
[1731075982645,0.7709,2946.3,2945.6,0.55]
[1731075982847,0.7709,2946.3,2945.4,0.55]
[1731075983069,0.7709,2946.3,2945.3,0.55]
[1731075983677,0.7709,2946.3,2945.5,0.55]
[1731075983976,0.7709,2946.3,2945.6,0.06789]
[1731075984193,0.7709,2946.3,2945.5,0.55]
[1731075984348,0.7709,2946.3,2945.6,0.06788999]
[1731075984540,0.7709,2946.3,2945.4,0.06788999]
[1731075984746,0.7709,2946.3,2945.5,0.55]
[1731075985202,0.7709,2946.3,2945.2,0.67094427]
[1731075985203,0.7709,2946.3,2945.3,0.55]
[1731075985791,0.7709,2946.3,2945.5,0.55]
[1731075986384,0.7709,2946.3,2945.5,3.55]
[1731075986683,0.7709,2946.3,2945.5,3.91178932]
[1731075987087,0.7709,2946.3,2945.6,0.06789322]
[1731075987447,0.7709,2946.3,2945.5,0.55]
[1731075987654,0.7709,2946.3,2945.5,3.55]
[1731075988089,0.7709,2946.3,2945.3,0.55]
[1731075989586,0.7844,2946.8,2945.5,0.55]
[1731075989803,0.7844,2946.8,2945.3,3.55]
[1731075990389,0.7844,2946.8,2945.8,0.55]
[1731075994109,0.7844,2946.8,2945.8,0.61788498]
[1731075996576,0.751,2947.6,2945.8,0.55]
[1731075998711,0.751,2947.6,2946.4,0.66777702]
[1731075999018,0.751,2947.6,2946.5,0.55]
[1731075999222,0.8327,2947.4,2946.5,0.55]
[1731075999633,0.8327,2947.4,2946.4,0.66777702]
[1731075999924,0.8235,2947.2,2945.6,0.55]
[1731076000097,0.8235,2947.2,2945.3,1.357822]
[1731076000425,0.8235,2947.2,2945.4,0.55]
[1731076000624,3.97171065,2947.3,2945.5,0.1907822]
[1731076000625,0.8235,2947.0,2945.5,0.1907822]
[1731076000934,0.8235,2947.0,2945.2,0.86645163]
[1731076001131,0.8235,2947.0,2945.1,1.357931]
[1731076002621,0.8235,2947.0,2945.9,0.55]
[1731076003981,0.81449445,2947.0,2945.9,0.55]
[1731076005011,3.97171065,2946.9,2945.9,0.55]
[1731076005197,0.39717107,2946.8,2945.1,0.55]
[1731076005541,0.39717107,2946.8,2945.5,0.6663682]
[1731076005824,3.0,2947.2,2945.5,0.6663682]
[1731076006590,3.0,2947.2,2945.6,0.55]
[1731076006922,3.0,2947.2,2945.6,0.61789004]
[1731076007224,0.7955,2947.1,2945.6,0.61789004]
[1731076007526,0.70525301,2947.1,2945.6,0.61789004]
[1731076007691,0.751,2946.9,2945.6,0.55]
[1731076008727,0.751,2946.9,2945.6,0.61789029]
[1731076009387,0.751,2946.8,2945.6,0.61789029]
[1731076012328,0.751,2946.8,2945.6,0.55]
[1731076012706,0.751,2946.8,2945.8,0.55]
[1731076012886,0.751,2946.8,2945.6,0.55]
[1731076013939,0.751,2946.8,2945.8,0.55]
[1731076014088,0.751,2946.8,2945.9,0.06788337]
[1731076014433,0.751,2946.8,2945.8,0.55]
[1731076015199,0.751,2946.8,2946.0,0.6676754]
[1731076015529,0.751,2946.8,2946.1,0.61787811]
[1731076015826,0.751,2946.8,2946.1,0.55]
[1731076016190,0.751,2946.8,2946.1,0.61787818]
[1731076016388,0.751,2946.8,2946.1,0.55]
[1731076017089,0.751,2946.8,2946.1,0.61787819]
[1731076017492,0.751,2946.8,2946.1,0.55]
[1731076018006,0.751,2946.8,2946.1,0.61787821]
[1731076018224,0.751,2946.8,2946.1,0.55]
[1731076021191,0.751,2946.8,2946.2,0.06787531]
[1731076021395,0.751,2946.8,2946.3,0.55]
[1731076021597,0.751,2946.8,2946.1,0.55]
[1731076022145,0.751,2946.8,2946.0,0.6676754]
[1731076023127,0.7753,2946.7,2945.1,3.0]
[1731076023299,0.7799,2946.6,2945.2,0.6233737]
[1731076024137,0.7815,2946.5,2945.2,0.6233737]
[1731076024356,0.7815,2945.9,2944.8,1.22102368]
[1731076024524,0.7815,2945.9,2944.8,0.3543932]
[1731076024835,0.7815,2945.8,2944.7,0.6835357]
[1731076024997,0.7815,2945.8,2944.0,3.233737]
[1731076025200,0.7815,2945.8,2944.1,0.35882422]
[1731076025397,0.7971,2945.6,2944.1,0.35882422]
[1731076025598,0.7971,2945.6,2944.6,0.68716118]
[1731076025798,0.7971,2945.6,2944.7,0.06790932]
[1731076026241,0.7971,2945.6,2944.8,0.55]
[1731076026407,0.7971,2945.6,2944.7,0.55]
[1731076029143,0.7971,2945.6,2944.7,3.55]
[1731076029482,0.7971,2945.6,2944.9,0.55]
[1731076031286,0.7971,2945.6,2944.7,3.0]
[1731076031444,0.7971,2945.6,2944.0,3.233737]
[1731076031445,0.7971,2945.6,2944.1,3.0]
[1731076031778,0.7971,2945.6,2944.2,35.0]
[1731076032067,0.7971,2945.6,2944.3,3.0]
[1731076032378,0.7971,2945.6,2944.1,3.0]
[1731076032665,0.7971,2945.6,2944.5,0.66480471]
[1731076033535,0.7971,2945.6,2944.6,3.067915]
[1731076033792,0.7971,2945.6,2944.5,0.66480471]
[1731076033935,0.7971,2945.6,2944.6,0.55]
[1731076034131,0.7971,2945.6,2944.8,3.55]
[1731076034838,0.7971,2945.6,2944.9,0.06790672]
[1731076035048,0.7971,2945.6,2944.8,3.55]
[1731076035428,0.7971,2945.6,2945.0,0.66324365]
[1731076035633,0.7971,2945.6,2944.8,3.55]
[1731076035866,0.7971,2945.6,2944.8,0.55]
[1731076036479,0.7971,2945.6,2944.5,0.69032452]
[1731076036653,0.8086,2945.4,2944.5,0.36903245]
[1731076038840,0.8086,2945.4,2944.5,0.43695207]
[1731076039077,0.8086,2945.4,2944.5,0.36903245]
[1731076039643,0.8086,2945.4,2944.5,0.43694837]
[1731076040969,0.8086,2945.4,2944.5,0.36903245]
[1731076041141,0.8086,2945.4,2943.3,0.39640336]
[1731076041142,0.8014,2945.3,2943.7,0.841462]
[1731076041552,0.782,2945.0,2943.3,3.233737]
[1731076041757,0.782,2945.0,2943.9,0.6700471]
[1731076042580,0.782,2944.8,2943.9,0.6700471]
[1731076043085,0.782,2944.8,2943.4,35.0]
[1731076043086,0.8311,2944.7,2943.4,35.0]
[1731076043848,0.8311,2944.7,2943.5,0.55]
[1731076044100,0.8311,2944.7,2943.7,0.55]
[1731076044286,0.8311,2944.7,2943.8,0.69285789]
[1731076044787,0.8311,2944.7,2943.9,3.85167067]
[1731076044991,0.8311,2944.7,2944.1,0.55]
[1731076045302,0.8311,2944.7,2944.3,0.55]
[1731076045597,3.233737,2946.0,2944.5,0.55]
[1731076045598,0.757,2945.9,2944.5,0.55]
[1731076046205,3.0,2945.9,2944.5,35.55]
[1731076046354,0.7756,2945.8,2944.6,0.06791288]
[1731076046556,0.7756,2945.8,2944.7,0.68551709]
[1731076048233,0.7756,2945.8,2944.4,0.55]
[1731076048391,0.7756,2945.8,2944.4,35.55]
[1731076048591,0.7515,2945.6,2944.4,0.55]
[1731076049236,0.7515,2945.6,2944.6,0.68919161]
[1731076049529,0.7515,2945.6,2944.6,0.44350861]
[1731076049730,0.7644,2945.4,2944.6,0.44350861]
[1731076051333,0.7644,2945.4,2944.7,0.55]
[1731076052248,0.7644,2945.4,2944.6,0.44350861]
[1731076052750,0.7654,2945.3,2944.6,0.44350861]
[1731076053352,0.7654,2945.3,2943.5,35.0]
[1731076053510,3.233737,2945.4,2943.5,35.0]
[1731076053511,0.7654,2945.1,2943.5,35.0]
[1731076053916,0.7654,2945.1,2943.6,0.55]
[1731076054547,0.7654,2945.1,2943.6,3.55]
[1731076056547,0.8028,2945.0,2944.5,0.66748795]
[1731076056762,0.8028,2945.0,2943.5,0.55]
[1731076056929,3.233737,2945.1,2943.4,3.0]
[1731076056930,0.8028,2944.8,2943.7,3.55]
[1731076057314,0.8028,2944.8,2943.7,0.55]
[1731076058020,0.8028,2944.8,2943.9,0.68447026]
[1731076060317,0.8038,2944.7,2943.6,0.355]
[1731076060519,0.8038,2944.5,2943.2,0.55]
[1731076060824,0.8038,2944.5,2943.4,3.55]
[1731076061025,0.8038,2944.5,2943.6,0.55]
[1731076061228,0.8038,2944.5,2943.8,0.55]
[1731076061460,0.8038,2944.5,2943.9,0.06793001]
[1731076061628,0.8038,2944.5,2944.0,0.55]
[1731076061817,0.8038,2944.5,2944.1,0.06792445]
[1731076062020,0.8038,2944.5,2944.2,35.0]
[1731076063048,0.8038,2944.5,2944.2,35.67001106]
[1731076063215,0.80114532,2944.5,2944.2,35.67001106]
[1731076065620,0.80114532,2944.5,2944.2,0.67001106]
[1731076066020,0.80114532,2944.5,2944.3,35.0]
[1731076075045,0.7537,2945.3,2944.3,35.0]
[1731076075252,0.7537,2945.3,2944.4,3.06792402]
[1731076075447,0.7537,2945.3,2944.3,0.55]
[1731076076078,0.7537,2945.3,2944.4,35.0]
[1731076076877,0.75233495,2945.3,2944.4,35.0]
[1731076078341,3.233737,2945.1,2944.2,0.67001106]
[1731076078541,0.3233737,2945.0,2944.2,0.67001106]
[1731076079567,0.3233737,2945.0,2943.5,0.61793006]
[1731076079771,0.8187,2944.9,2944.1,0.55]
[1731076079992,0.8187,2944.9,2944.3,0.55]
[1731076083379,0.8187,2944.9,2944.2,35.0]
[1731076083556,0.8187,2944.9,2943.5,0.013]
[1731076083755,0.8187,2944.9,2943.6,0.3013]
[1731076083952,0.8187,2944.9,2943.8,3.0]
[1731076084480,0.8187,2944.9,2943.9,0.06792819]
[1731076085273,0.8187,2944.9,2943.9,0.7490814]
[1731076086606,0.8187,2944.9,2943.2,0.013]
[1731076087096,0.8187,2944.9,2943.7,0.67843783]
[1731076087262,0.8187,2944.9,2943.8,0.55]
[1731076088567,0.8187,2944.9,2944.0,0.55]
[1731076089566,0.8187,2944.9,2943.9,0.55]
[1731076089759,0.8187,2944.9,2944.0,0.06792617]
[1731076090099,0.8187,2944.9,2943.9,0.55]
[1731076090454,0.8187,2944.9,2944.0,0.06792622]
[1731076090691,0.8187,2944.9,2944.2,0.55]
[1731076090857,0.8187,2944.9,2944.2,0.6179212]
[1731076091069,0.8187,2944.9,2944.2,0.55]
[1731076091698,0.8187,2944.9,2944.4,0.55]
[1731076091878,0.8187,2944.9,2944.6,0.55]
[1731076094195,0.8187,2944.9,2944.7,0.67136321]
[1731076096207,0.8187,2944.9,2943.9,0.55]
[1731076096415,0.8187,2944.9,2944.3,0.66905565]
[1731076096783,0.8187,2944.9,2944.4,0.06792131]
[1731076097710,0.8187,2944.9,2944.5,0.55]
[1731076097933,0.8187,2944.9,2944.6,0.0679131]
[1731076098639,0.7578,2945.7,2944.7,0.55]
[1731076099131,0.7578,2945.7,2944.8,0.06790678]
[1731076099702,0.7578,2945.7,2944.5,0.55]
[1731076100021,0.7578,2945.7,2944.4,0.55]
[1731076100223,0.7578,2945.7,2944.3,0.68205565]
[1731076100224,0.7578,2945.7,2944.7,0.55]
[1731076100985,0.7578,2945.7,2944.9,0.67095372]
[1731076101722,0.7578,2945.7,2945.0,0.06790329]
[1731076101929,0.7578,2945.7,2945.0,0.06790327]
[1731076102429,0.7578,2945.7,2944.9,0.67095372]
[1731076105963,3.233737,2945.7,2944.7,0.55]
[1731076106118,0.7567,2945.5,2944.0,0.013]
[1731076106322,0.7567,2945.5,2944.4,0.68452754]
[1731076107435,0.7567,2945.5,2944.5,0.55]
[1731076108624,0.7567,2945.5,2944.6,0.08091208]
[1731076109258,0.7567,2945.5,2944.6,0.06791208]
[1731076111352,0.7567,2945.5,2944.6,0.06791202]
[1731076112558,0.7567,2945.5,2944.5,0.55]
[1731076112869,0.7567,2945.5,2944.2,0.86055365]
[1731076112870,0.7567,2945.5,2944.7,0.55]
[1731076113038,0.7567,2945.5,2944.9,0.55]
[1731076113538,0.7567,2945.5,2944.8,0.55]
[1731076113737,0.7567,2945.5,2944.9,0.355]
[1731076114237,0.7567,2945.5,2945.0,0.68249771]
[1731076122944,0.7567,2945.5,2944.7,0.55]
[1731076123147,0.7567,2945.5,2944.8,0.06790844]
[1731076123346,0.7567,2945.5,2944.8,0.68258087]
[1731076131060,0.7567,2945.5,2943.9,0.013]
[1731076131256,1.49395489,2945.2,2944.1,0.55]
[1731076131461,0.8164,2945.1,2944.1,0.55]
[1731076131659,0.8164,2945.1,2944.6,0.67813174]
[1731076134501,0.8164,2945.1,2944.3,0.55]
[1731076134716,0.8164,2945.1,2944.3,0.67894614]
[1731076134997,0.7516,2944.9,2944.1,35.55]
[1731076135302,0.7516,2944.7,2944.1,0.55]
[1731076135674,0.7516,2944.7,2943.9,0.55]
[1731076136518,0.7516,2944.7,2944.2,0.69116229]
[1731076138307,0.7516,2944.7,2944.3,0.55]
[1731076138505,0.7516,2944.7,2944.2,3.70416229]
[1731076138710,0.7516,2944.7,2944.3,0.37041623]
[1731076138945,0.7516,2944.7,2944.2,0.69116229]
[1731076144707,0.7516,2944.7,2944.3,0.55]
[1731076144943,1.05787952,2945.5,2944.5,0.55]
[1731076144944,0.7563,2945.5,2944.5,0.55]
[1731076145330,0.7563,2945.5,2944.4,0.55]
[1731076145674,0.8074,2945.4,2944.4,0.55]
[1731076145885,0.8074,2945.4,2944.5,0.355]
[1731076148378,0.8074,2945.4,2944.3,0.55]
[1731076148577,0.8074,2945.4,2944.4,1.49395489]
[1731076148776,0.8074,2945.4,2944.5,0.55]
[1731076149078,0.8074,2945.4,2944.3,3.55]
[1731076149541,0.8074,2945.4,2944.3,0.55]
[1731076150187,0.8074,2945.4,2944.4,0.06791432]
[1731076150472,0.8074,2945.4,2944.5,0.36179143]
[1731076150658,0.8074,2945.4,2944.6,0.06791427]
[1731076152936,0.8074,2945.4,2944.7,0.55]
[1731076153334,0.8074,2945.4,2944.8,0.06790759]
[1731076153538,0.8074,2945.4,2944.7,0.55]
[1731076153775,0.8074,2945.4,2944.8,0.06790759]
[1731076153979,0.8074,2945.4,2944.7,0.55]
[1731076154280,0.8074,2945.4,2944.8,0.50569549]
[1731076155678,1.05787952,2946.1,2945.0,1.49395489]
[1731076155893,0.8146,2945.8,2945.5,0.55]
[1731076156044,0.8146,2946.5,2945.6,0.06789034]
[1731076156249,1.74079345,2946.4,2945.5,0.55]
[1731076156563,0.7696,2946.3,2945.5,0.55]
[1731076156887,0.7696,2946.1,2945.3,3.66611009]
[1731076157097,1.49395489,2945.8,2944.5,1.50695489]
[1731076157266,0.7696,2945.5,2944.6,0.23597]
[1731076157588,0.7696,2945.5,2944.5,1.50695489]
[1731076157960,0.7696,2945.5,2944.6,0.0679042]
[1731076158575,0.7696,2945.5,2945.2,0.67357617]
[1731076158781,0.99595549,2945.5,2945.2,0.67357617]
[1731076158979,0.7696,2945.5,2945.2,0.67357617]
[1731076171574,0.7831,2946.2,2945.2,2.18053106]
[1731076171774,0.7831,2946.2,2945.3,3.61790029]
[1731076171997,0.7831,2946.2,2945.5,0.55]
[1731076172198,0.7831,2946.2,2945.6,0.06788855]
[1731076172398,0.7831,2946.2,2945.6,0.27907289]
[1731076177688,0.7831,2946.2,2945.3,0.55]
[1731076178330,0.7831,2946.2,2945.8,0.68445553]
[1731076180120,0.7831,2946.2,2945.9,0.0678886]
[1731076180931,0.7776,2947.1,2946.0,0.55]
[1731076181236,0.7776,2947.1,2946.1,0.06787709]
[1731076181401,0.7776,2946.9,2946.1,0.06787709]
[1731076182394,0.7776,2946.9,2946.2,1.49395489]
[1731076182594,0.7776,2946.9,2946.3,0.06787471]
[1731076183041,0.7776,2946.9,2946.4,2.04395489]
[1731076183210,0.7776,2947.6,2946.5,0.06786815]
[1731076183414,0.7776,2947.4,2946.6,1.49395489]
[1731076183600,0.7776,2947.4,2946.6,2.17329053]
[1731076183798,0.7776,2947.4,2946.7,0.06786694]
[1731076184538,0.7776,2947.4,2946.8,0.55]
[1731076184836,0.7776,2947.4,2946.7,0.563]
[1731076185041,0.7776,2947.4,2946.7,1.13662905]
[1731076185399,0.7776,2947.4,2946.7,36.13662905]
[1731076185608,0.7776,2947.4,2946.9,0.55]
[1731076185848,0.7776,2947.4,2947.0,0.06785734]
[1731076186927,0.8226,2948.0,2947.1,0.55]
[1731076187128,0.8226,2948.0,2947.2,0.06785388]
[1731076188348,0.8226,2948.0,2947.1,0.81618122]
[1731076188952,1.06595411,2948.8,2947.9,1.49395489]
[1731076189113,0.8232,2948.9,2948.0,0.563]
[1731076189306,0.8232,2948.9,2948.0,0.76869549]
[1731076190621,0.8232,2948.9,2948.1,3.06782582]
[1731076190851,0.7651,2949.2,2948.3,3.24111394]
[1731076191167,0.7651,2949.2,2948.6,0.67625742]
[1731076191366,0.1385877,2949.3,2948.7,0.55]
[1731076191674,0.1385877,2949.3,2948.8,0.013]
[1731076192366,0.1385877,2949.3,2948.9,0.55]
[1731076192533,0.1385877,2949.3,2948.8,0.013]
[1731076193573,0.1385877,2949.3,2949.0,0.55]
[1731076193872,0.1385877,2949.3,2949.2,0.55]
[1731076194757,0.1385877,2949.3,2949.0,0.55]
[1731076195181,0.1385877,2949.3,2949.1,0.013]
[1731076195492,0.1385877,2949.3,2949.2,6.77811394]